fUSD/lending_fUSD_20260515
["ID","MTS","AMOUNT","RATE_DAILY","PERIOD"]
[422340916,1778850639000,-273.92452133,0.00014788,2]
[422340915,1778850639000,-36730.62642984,0.00014767,2]
[422340919,1778850639000,-500.0,0.00014788,2]
[422340930,1778850639000,-150.0,0.00014846,2]
[422340918,1778850639000,-500.0,0.00014788,2]
[422340920,1778850639000,-500.0,0.00014788,2]
[422340911,1778850639000,-6965.5908,0.00014749,2]
[422340913,1778850639000,-1308.39854553,0.00014766,2]
[422340912,1778850639000,-150.0,0.00014752,2]
[422340914,1778850639000,-320.0,0.00014767,2]
[422340991,1778850640000,-150.0,0.00014939,2]
[422340997,1778850640000,-150.0,0.00014986,2]
[422340996,1778850640000,-150.0,0.00014986,2]
[422340998,1778850640000,-152.74636837,0.00014986,2]
[422341000,1778850640000,-169.05129883,0.00014986,2]
[422340999,1778850640000,-247.47649437,0.00014986,2]
[422340995,1778850640000,-156.6761228,0.00014986,2]
[422340994,1778850640000,-8889.02,0.00014981,2]
[422341002,1778850640000,-150.0,0.00014986,2]
[422340992,1778850640000,-1308.39854553,0.00014949,2]
[422341001,1778850640000,-155.79282259,0.00014986,2]
[422340993,1778850640000,-3165.00676345,0.00014977,2]
[422341005,1778850640000,-1915.3462441,0.00014999,2]
[422341013,1778850640000,-500.0,0.00014999,2]
[422341006,1778850640000,-10007.9186791,0.00014999,2]
[422341007,1778850640000,-500.0,0.00014999,2]
[422341009,1778850640000,-500.0,0.00014999,2]
[422341003,1778850640000,-1023.13150078,0.0001499,2]
[422341008,1778850640000,-500.0,0.00014999,2]
[422341010,1778850640000,-500.0,0.00014999,2]
[422341012,1778850640000,-500.0,0.00014999,2]
[422341011,1778850640000,-500.0,0.00014999,2]
[422341015,1778850640000,-500.0,0.00014999,2]
[422340990,1778850640000,-210.68238258,0.00014924,2]
[422341016,1778850640000,-500.0,0.00014999,2]
[422341004,1778850640000,-13248.8735342,0.00014999,2]
[422340983,1778850640000,-25000.0,0.000149,3]
[422340971,1778850640000,-500.0,0.00014899,2]
[422340985,1778850640000,-2268.02684139,0.000149,2]
[422341020,1778850640000,-500.0,0.00014999,2]
[422340959,1778850640000,-350.0,0.00014869,2]
[422340961,1778850640000,-1000.0,0.0001488,2]
[422340962,1778850640000,-200.0,0.0001488,2]
[422340960,1778850640000,-200.0,0.00014879,2]
[422340963,1778850640000,-200.0,0.0001488,2]
[422340972,1778850640000,-577.61138007,0.00014899,2]
[422340973,1778850640000,-1134.9893546,0.00014899,2]
[422340977,1778850640000,-200.0,0.000149,2]
[422340976,1778850640000,-2000.0,0.000149,2]
[422340975,1778850640000,-315.44579433,0.00014899,2]
[422340974,1778850640000,-770.7589289,0.00014899,2]
[422340968,1778850640000,-150.0,0.00014893,2]
[422340969,1778850640000,-500.0,0.00014898,2]
[422340970,1778850640000,-356.46,0.00014899,2]
[422340966,1778850640000,-166.54,0.00014886,2]
[422340986,1778850640000,-307.83906018,0.000149,2]
[422340978,1778850640000,-200.0,0.000149,2]
[422340987,1778850640000,-527.19808609,0.000149,2]
[422340981,1778850640000,-8917.13389732,0.000149,2]
[422340984,1778850640000,-157.99859496,0.000149,2]
[422340982,1778850640000,-36730.62642984,0.000149,2]
[422340979,1778850640000,-254.16,0.000149,2]
[422340988,1778850640000,-500.0,0.00014904,2]
[422340980,1778850640000,-200.0,0.000149,2]
[422340989,1778850640000,-290.79838077,0.00014908,2]
[422341021,1778850640000,-500.0,0.00014999,2]
[422341017,1778850640000,-500.0,0.00014999,2]
[422341023,1778850640000,-500.0,0.00014999,2]
[422341062,1778850640000,-300.0,0.00014999,2]
[422341055,1778850640000,-500.0,0.00014999,2]
[422341053,1778850640000,-500.0,0.00014999,2]
[422341051,1778850640000,-500.0,0.00014999,2]
[422341058,1778850640000,-500.0,0.00014999,2]
[422341057,1778850640000,-500.0,0.00014999,2]
[422341056,1778850640000,-500.0,0.00014999,2]
[422341050,1778850640000,-500.0,0.00014999,2]
[422341052,1778850640000,-500.0,0.00014999,2]
[422341054,1778850640000,-500.0,0.00014999,2]
[422341064,1778850640000,-300.0,0.00014999,2]
[422341063,1778850640000,-183.9169181,0.00014999,2]
[422341044,1778850640000,-500.0,0.00014999,2]
[422341059,1778850640000,-500.0,0.00014999,2]
[422341066,1778850640000,-300.0,0.00014999,2]
[422341072,1778850640000,-1000.0,0.00015,2]
[422341073,1778850640000,-1000.0,0.00015,2]
[422341074,1778850640000,-1000.0,0.00015,2]
[422341075,1778850640000,-811.9791487,0.00015,2]
[422341065,1778850640000,-300.0,0.00014999,2]
[422341068,1778850640000,-201.002,0.00015,2]
[422341069,1778850640000,-1000.0,0.00015,2]
[422341070,1778850640000,-1000.0,0.00015,2]
[422341014,1778850640000,-500.0,0.00014999,2]
[422341071,1778850640000,-1000.0,0.00015,2]
[422341076,1778850640000,-9678982.26302555,0.00015,2]
[422341060,1778850640000,-300.0,0.00014999,2]
[422341042,1778850640000,-500.0,0.00014999,2]
[422341067,1778850640000,-151.0,0.00015,2]
[422341047,1778850640000,-500.0,0.00014999,2]
[422341025,1778850640000,-500.0,0.00014999,2]
[422341024,1778850640000,-500.0,0.00014999,2]
[422341018,1778850640000,-500.0,0.00014999,2]
[422341019,1778850640000,-500.0,0.00014999,2]
[422341022,1778850640000,-500.0,0.00014999,2]
[422341026,1778850640000,-500.0,0.00014999,2]
[422341027,1778850640000,-500.0,0.00014999,2]
[422341028,1778850640000,-500.0,0.00014999,2]
[422341030,1778850640000,-500.0,0.00014999,2]
[422341033,1778850640000,-500.0,0.00014999,2]
[422341034,1778850640000,-500.0,0.00014999,2]
[422341029,1778850640000,-500.0,0.00014999,2]
[422341032,1778850640000,-500.0,0.00014999,2]
[422341035,1778850640000,-500.0,0.00014999,2]
[422341031,1778850640000,-500.0,0.00014999,2]
[422341043,1778850640000,-500.0,0.00014999,2]
[422341045,1778850640000,-500.0,0.00014999,2]
[422341039,1778850640000,-500.0,0.00014999,2]
[422341040,1778850640000,-500.0,0.00014999,2]
[422341041,1778850640000,-500.0,0.00014999,2]
[422341048,1778850640000,-500.0,0.00014999,2]
[422341046,1778850640000,-500.0,0.00014999,2]
[422341037,1778850640000,-500.0,0.00014999,2]
[422341038,1778850640000,-500.0,0.00014999,2]
[422341036,1778850640000,-500.0,0.00014999,2]
[422341049,1778850640000,-500.0,0.00014999,2]
[422341077,1778850642000,-2261.99891123,0.00015,2]
[422341078,1778850642000,-1152.38968876,0.00015,2]
[422341081,1778850642000,-802.879,0.00015,2]
[422341079,1778850642000,-875.50000001,0.00015,2]
[422341082,1778850642000,-988730.18355727,0.00015,2]
[422341080,1778850642000,-1325.46,0.00015,2]
[422341100,1778850643000,-805.73,0.00015,2]
[422341099,1778850643000,-258.22540278,0.00015,2]
[422341098,1778850643000,-15.76853305,0.00014999,2]
[422341096,1778850643000,-151.0,0.00014999,2]
[422341097,1778850643000,-247.83051,0.00014999,2]
[422341110,1778850646000,-4860.02144468,0.00015,2]
[422341109,1778850646000,-3139.97855532,0.0001432,2]
[422341112,1778850646000,-77508.46310051,0.00015,2]
[422341111,1778850646000,-8012.32210412,0.00015,2]
[422341114,1778850647000,-1604.643,0.00015,2]
[422341113,1778850647000,-466.1866333,0.00015,2]
[422341120,1778850840000,140.35,7.149e-05,2]
[422341119,1778850840000,10.21,7.149e-05,2]
[422341121,1778850851000,181.5282928,0.00030136,120]
[422341125,1778851279000,150.0,0.0003,120]
[422341127,1778851400000,5581.0,0.00030137,120]
[422341128,1778851737000,395.22798306,0.00030137,120]
[422341147,1778851834000,-2242.81111245,0.00013213,2]
[422341148,1778851834000,-1403.8382809,0.00013213,2]
[422341151,1778851834000,-303.72702952,0.00013213,2]
[422341150,1778851834000,-1081.52417762,0.00013213,2]
[422341154,1778851834000,-2000.0,0.00013214,2]
[422341157,1778851834000,-150.99,0.00013214,2]
[422341149,1778851834000,-1248.86929294,0.00013213,2]
[422341156,1778851834000,-9999.99,0.00013214,2]
[422341153,1778851834000,-1738.13864436,0.00013213,2]
[422341146,1778851834000,-2903.91,0.00013213,2]
[422341162,1778851834000,-160.0,0.00013243,2]
[422341159,1778851834000,-2129.85,0.00013214,2]
[422341152,1778851834000,-1981.08146221,0.00013213,2]
[422341144,1778851834000,-389.72,0.00013192,2]
[422341141,1778851834000,-2302.86725712,0.00013064,2]
[422341143,1778851834000,-477.89,0.000131,2]
[422341138,1778851834000,-150.0,0.00012985,2]
[422341140,1778851834000,-2287.51677326,0.00013064,2]
[422341142,1778851834000,-177.67,0.00013083,2]
[422341139,1778851834000,-34.91596962,0.00013064,2]
[422341137,1778851834000,-278.17829663,0.00012983,2]
[422341135,1778851834000,-20.45266028,0.00011641,2]
[422341133,1778851834000,-150.56,0.00010583,2]
[422341136,1778851834000,-190.43180029,0.0001286,2]
[422341134,1778851834000,-229.54733972,0.00011641,2]
[422341132,1778851834000,-84.61444437,0.00010583,2]
[422341131,1778851834000,-86.62,0.00010583,2]
[422341130,1778851834000,-163.38,0.00010583,2]
[422341145,1778851834000,-150.0,0.00013213,2]
[422341158,1778851834000,-49631.99,0.00013214,2]
[422341166,1778851834000,-389.72,0.00013522,2]
[422341160,1778851834000,-162.45,0.00013214,2]
[422341155,1778851834000,-1441.35,0.00013214,2]
[422341205,1778851834000,-389.72,0.00014181,2]
[422341214,1778851834000,-5000.0,0.00014204,2]
[422341212,1778851834000,-1082.89,0.00014204,2]
[422341208,1778851834000,-368.69073736,0.00014204,2]
[422341189,1778851834000,-208.38824723,0.0001398,2]
[422341196,1778851834000,-150.56,0.00014018,2]
[422341192,1778851834000,-12315.45551757,0.0001399,2]
[422341183,1778851834000,-411.4781,0.00013918,2]
[422341198,1778851834000,-158.64,0.00014018,2]
[422341200,1778851834000,-184.06500138,0.00014018,21]
[422341202,1778851834000,-166.66,0.0001411,2]
[422341179,1778851834000,-549.0418679,0.00013872,2]
[422341185,1778851834000,-166.66,0.00013973,2]
[422341210,1778851834000,-512.13786049,0.00014204,2]
[422341194,1778851834000,-250.0,0.00014,2]
[422341161,1778851834000,-999.99,0.00013214,2]
[422341187,1778851834000,-214.997284,0.0001398,2]
[422341165,1778851834000,-200.0,0.00013305,2]
[422341168,1778851834000,-200.0,0.00013699,2]
[422341171,1778851834000,-432.84,0.00013809,2]
[422341167,1778851834000,-166.66,0.00013699,2]
[422341163,1778851834000,-170.65,0.00013284,2]
[422341170,1778851834000,-163.19,0.000137,2]
[422341173,1778851834000,-166.66,0.00013836,2]
[422341175,1778851834000,-389.72,0.00013851,2]
[422341181,1778851834000,-300.0,0.000139,2]
[422341177,1778851834000,-500.0,0.00013872,2]
[422341169,1778851834000,-2038.01,0.00013699,2]
[422341278,1778851835000,-500.0,0.00014303,2]
[422341275,1778851835000,-500.0,0.00014303,2]
[422341277,1778851835000,-500.0,0.00014303,2]
[422341274,1778851835000,-500.0,0.00014303,2]
[422341273,1778851835000,-500.0,0.00014303,2]
[422341270,1778851835000,-500.0,0.00014303,2]
[422341271,1778851835000,-500.0,0.00014303,2]
[422341279,1778851835000,-500.0,0.00014303,2]
[422341268,1778851835000,-1096.81108638,0.00014303,5]
[422341276,1778851835000,-500.0,0.00014303,2]
[422341280,1778851835000,-500.0,0.00014303,2]
[422341288,1778851835000,-500.0,0.00014303,2]
[422341282,1778851835000,-500.0,0.00014303,2]
[422341283,1778851835000,-500.0,0.00014303,2]
[422341290,1778851835000,-500.0,0.00014303,2]
[422341285,1778851835000,-500.0,0.00014303,2]
[422341286,1778851835000,-505.50097699,0.00014303,2]
[422341287,1778851835000,-500.0,0.00014303,2]
[422341284,1778851835000,-500.0,0.00014303,2]
[422341292,1778851835000,-500.0,0.00014303,2]
[422341295,1778851835000,-500.0,0.00014303,2]
[422341294,1778851835000,-500.0,0.00014303,2]
[422341293,1778851835000,-500.0,0.00014303,2]
[422341269,1778851835000,-542.56640835,0.00014303,2]
[422341281,1778851835000,-500.0,0.00014303,2]
[422341265,1778851835000,-500.0,0.00014303,2]
[422341245,1778851835000,-500.0,0.00014303,2]
[422341267,1778851835000,-511.13281716,0.00014303,5]
[422341225,1778851835000,-500.0,0.00014281,2]
[422341217,1778851835000,-1946.52,0.00014219,2]
[422341219,1778851835000,-166.66,0.00014247,2]
[422341223,1778851835000,-3901.24870122,0.00014259,2]
[422341221,1778851835000,-590.396067,0.00014259,2]
[422341241,1778851835000,-500.0,0.00014303,2]
[422341238,1778851835000,-500.0,0.00014303,2]
[422341243,1778851835000,-500.0,0.00014303,2]
[422341240,1778851835000,-500.0,0.00014303,2]
[422341229,1778851835000,-500.0,0.00014303,2]
[422341227,1778851835000,-315.07199014,0.00014294,2]
[422341231,1778851835000,-500.0,0.00014303,2]
[422341233,1778851835000,-500.0,0.00014303,2]
[422341291,1778851835000,-500.0,0.00014303,2]
[422341235,1778851835000,-500.0,0.00014303,2]
[422341247,1778851835000,-500.0,0.00014303,2]
[422341250,1778851835000,-500.0,0.00014303,2]
[422341254,1778851835000,-500.0,0.00014303,2]
[422341252,1778851835000,-500.0,0.00014303,2]
[422341263,1778851835000,-500.0,0.00014303,2]
[422341256,1778851835000,-500.0,0.00014303,2]
[422341261,1778851835000,-421.81507046,0.00014303,2]
[422341262,1778851835000,-500.0,0.00014303,2]
[422341258,1778851835000,-78.18492954,0.00014303,2]
[422341266,1778851835000,-500.0,0.00014303,2]
[422341264,1778851835000,-500.0,0.00014303,2]
[422341296,1778851835000,-500.0,0.00014303,2]
[422341272,1778851835000,-500.0,0.00014303,2]
[422341297,1778851835000,-500.0,0.00014303,2]
[422341327,1778851835000,-500.0,0.00014303,2]
[422341330,1778851835000,-500.0,0.00014303,2]
[422341326,1778851835000,-500.0,0.00014303,2]
[422341334,1778851835000,-500.0,0.00014303,2]
[422341336,1778851835000,-500.0,0.00014303,2]
[422341335,1778851835000,-500.0,0.00014303,2]
[422341332,1778851835000,-500.0,0.00014303,2]
[422341331,1778851835000,-500.0,0.00014303,2]
[422341339,1778851835000,-500.0,0.00014303,2]
[422341340,1778851835000,-500.0,0.00014303,2]
[422341338,1778851835000,-500.0,0.00014303,2]
[422341341,1778851835000,-500.0,0.00014303,2]
[422341342,1778851835000,-500.0,0.00014303,2]
[422341346,1778851835000,-500.0,0.00014303,2]
[422341347,1778851835000,-500.0,0.00014303,2]
[422341345,1778851835000,-500.0,0.00014303,2]
[422341343,1778851835000,-500.0,0.00014303,2]
[422341344,1778851835000,-500.0,0.00014303,2]
[422341348,1778851835000,-500.0,0.00014303,2]
[422341349,1778851835000,-500.0,0.00014303,2]
[422341350,1778851835000,-500.0,0.00014303,2]
[422341351,1778851835000,-500.0,0.00014303,2]
[422341352,1778851835000,-500.0,0.00014303,2]
[422341353,1778851835000,-500.0,0.00014303,2]
[422341301,1778851835000,-401.0210076,0.00014303,2]
[422341329,1778851835000,-500.0,0.00014303,2]
[422341337,1778851835000,-500.0,0.00014303,2]
[422341333,1778851835000,-500.0,0.00014303,2]
[422341325,1778851835000,-500.0,0.00014303,2]
[422341298,1778851835000,-500.0,0.00014303,2]
[422341300,1778851835000,-500.0,0.00014303,2]
[422341328,1778851835000,-500.0,0.00014303,2]
[422341305,1778851835000,-527.38709912,0.00014303,2]
[422341304,1778851835000,-500.0,0.00014303,2]
[422341308,1778851835000,-500.0,0.00014303,2]
[422341310,1778851835000,-500.0,0.00014303,2]
[422341303,1778851835000,-500.0,0.00014303,2]
[422341313,1778851835000,-500.0,0.00014303,2]
[422341306,1778851835000,-500.0,0.00014303,2]
[422341302,1778851835000,-500.0,0.00014303,2]
[422341312,1778851835000,-500.0,0.00014303,2]
[422341311,1778851835000,-500.0,0.00014303,2]
[422341299,1778851835000,-500.0,0.00014303,2]
[422341307,1778851835000,-500.0,0.00014303,2]
[422341309,1778851835000,-500.0,0.00014303,2]
[422341320,1778851835000,-500.0,0.00014303,2]
[422341319,1778851835000,-500.0,0.00014303,2]
[422341324,1778851835000,-500.0,0.00014303,2]
[422341321,1778851835000,-500.0,0.00014303,2]
[422341317,1778851835000,-554.84,0.00014303,2]
[422341323,1778851835000,-500.0,0.00014303,2]
[422341316,1778851835000,-500.0,0.00014303,2]
[422341318,1778851835000,-500.0,0.00014303,2]
[422341314,1778851835000,-500.0,0.00014303,2]
[422341315,1778851835000,-500.0,0.00014303,2]
[422341322,1778851835000,-500.0,0.00014303,2]
[422341382,1778851836000,-500.0,0.00014303,2]
[422341379,1778851836000,-500.0,0.00014303,2]
[422341373,1778851836000,-500.0,0.00014303,2]
[422341366,1778851836000,-500.0,0.00014303,2]
[422341365,1778851836000,-500.0,0.00014303,2]
[422341371,1778851836000,-500.0,0.00014303,2]
[422341368,1778851836000,-500.0,0.00014303,2]
[422341367,1778851836000,-500.0,0.00014303,2]
[422341369,1778851836000,-500.0,0.00014303,2]
[422341360,1778851836000,-500.0,0.00014303,2]
[422341362,1778851836000,-500.0,0.00014303,2]
[422341363,1778851836000,-500.0,0.00014303,2]
[422341364,1778851836000,-500.0,0.00014303,2]
[422341361,1778851836000,-544.8115812,0.00014303,2]
[422341359,1778851836000,-500.0,0.00014303,2]
[422341357,1778851836000,-500.0,0.00014303,2]
[422341358,1778851836000,-500.0,0.00014303,2]
[422341356,1778851836000,-500.0,0.00014303,2]
[422341354,1778851836000,-500.0,0.00014303,2]
[422341355,1778851836000,-500.0,0.00014303,2]
[422341376,1778851836000,-500.0,0.00014303,2]
[422341370,1778851836000,-500.0,0.00014303,2]
[422341378,1778851836000,-500.0,0.00014303,2]
[422341396,1778851836000,-500.0,0.00014303,2]
[422341377,1778851836000,-285.37659664,0.00014303,2]
[422341400,1778851836000,-113410.74168681,0.00014304,2]
[422341375,1778851836000,-500.0,0.00014303,2]
[422341399,1778851836000,-298.15403065,0.00014304,2]
[422341395,1778851836000,-500.0,0.00014303,2]
[422341398,1778851836000,-425.62361572,0.00014303,2]
[422341397,1778851836000,-500.0,0.00014303,2]
[422341392,1778851836000,-500.0,0.00014303,2]
[422341389,1778851836000,-500.0,0.00014303,2]
[422341393,1778851836000,-500.0,0.00014303,2]
[422341391,1778851836000,-500.0,0.00014303,2]
[422341390,1778851836000,-500.0,0.00014303,2]
[422341401,1778851836000,-47402.32356984,0.00014304,2]
[422341386,1778851836000,-500.0,0.00014303,2]
[422341388,1778851836000,-500.0,0.00014303,2]
[422341384,1778851836000,-500.0,0.00014303,2]
[422341387,1778851836000,-478.84579469,0.00014303,2]
[422341383,1778851836000,-500.0,0.00014303,2]
[422341385,1778851836000,-500.0,0.00014303,2]
[422341381,1778851836000,-500.0,0.00014303,2]
[422341374,1778851836000,-642.29736269,0.00014303,2]
[422341380,1778851836000,-500.0,0.00014303,2]
[422341372,1778851836000,-500.0,0.00014303,2]
[422341394,1778851836000,-230.57408077,0.00014303,2]
[422341410,1778851838000,-9611.13636401,0.00014304,2]
[422341412,1778851838000,-2098.41447297,0.00014304,2]
[422341411,1778851838000,-2108.59135845,0.00014304,2]
[422341413,1778851838000,-1771.02180068,0.00014304,2]
[422341414,1778851838000,-1397.74019105,0.00014304,2]
[422341416,1778851838000,-79999.99999997,0.00014304,2]
[422341417,1778851838000,-245946.72461151,0.00014304,2]
[422341418,1778851838000,-290.570001,0.00014304,2]
[422341419,1778851838000,-1381.56113524,0.00014304,2]
[422341420,1778851838000,-1887.80242846,0.00014304,2]
[422341421,1778851838000,-290.400006,0.00014304,2]
[422341415,1778851838000,-1106.35050779,0.00014304,2]
[422341515,1778851840000,-400.39,0.00014304,2]
[422341516,1778851840000,-988730.18355727,0.00014304,2]
[422341514,1778851840000,-1198.20846186,0.00014304,2]
[422341513,1778851840000,-8011.23226826,0.00014304,2]
[422341512,1778851840000,-14495.04845492,0.00014304,2]
[422341547,1778851845000,-556.5095,0.00014204,2]
[422341549,1778851845000,-7201.28802029,0.00014304,2]
[422341548,1778851845000,-286.27595874,0.00014304,2]
[422341551,1778851845000,-511.40152277,0.00014304,2]
[422341552,1778851845000,-856.75015272,0.00014304,2]
[422341553,1778851845000,-598.87020583,0.00014304,2]
[422341550,1778851845000,-5635.18740844,0.00014304,2]
[422341588,1778851846000,-799.0603695,0.00014304,2]
[422341587,1778851846000,-472.08036541,0.00014304,2]
[422341584,1778851846000,-1116.67322409,0.00014304,2]
[422341633,1778851895000,166.12,0.00030136,120]
[422341635,1778851897000,93.93,6.865e-05,2]
[422341634,1778851897000,59.65,6.865e-05,2]
[422341637,1778851897000,153.58,8.749e-05,2]
[422341636,1778851897000,153.58,7.807e-05,2]
[422341641,1778852080000,500.0,0.0002963,120]
[422341700,1778853032000,-166.51,0.00013181,2]
[422341691,1778853032000,-250.73,0.00012356,2]
[422341693,1778853032000,-165.85,0.00012486,2]
[422341694,1778853032000,-153.58,0.00012518,2]
[422341689,1778853032000,-300.0,0.00012355,2]
[422341692,1778853032000,-680.58,0.00012356,2]
[422341699,1778853032000,-680.58,0.00012974,2]
[422341706,1778853032000,-500.0,0.00013497,2]
[422341701,1778853032000,-680.58,0.00013283,2]
[422341707,1778853032000,-500.0,0.00013497,2]
[422341709,1778853032000,-500.0,0.00013497,2]
[422341710,1778853032000,-500.0,0.00013497,2]
[422341708,1778853032000,-500.0,0.00013497,2]
[422341697,1778853032000,-150.0,0.00012887,2]
[422341703,1778853032000,-153.58,0.0001346,2]
[422341702,1778853032000,-500.0,0.00013315,2]
[422341711,1778853032000,-500.0,0.00013497,2]
[422341698,1778853032000,-669.07,0.00012888,2]
[422341685,1778853032000,-299.99,0.00012252,2]
[422341696,1778853032000,-171.05,0.00012747,2]
[422341672,1778853032000,-153.58,9.691e-05,2]
[422341673,1778853032000,-153.58,0.00010634,2]
[422341677,1778853032000,-2418.20783885,0.00010852,2]
[422341676,1778853032000,-152.0,0.00010852,2]
[422341675,1778853032000,-150.0,0.00010745,2]
[422341674,1778853032000,-292.29911912,0.00010661,2]
[422341680,1778853032000,-150.0,0.0001221,2]
[422341682,1778853032000,-9999.99,0.00012251,2]
[422341678,1778853032000,-153.58,0.00011576,2]
[422341681,1778853032000,-670.0,0.00012251,2]
[422341679,1778853032000,-214.997284,0.00011699,2]
[422341683,1778853032000,-2000.0,0.00012252,2]
[422341704,1778853032000,-500.0,0.00013497,2]
[422341684,1778853032000,-150.99,0.00012252,2]
[422341687,1778853032000,-500.0,0.00012274,2]
[422341695,1778853032000,-680.58,0.00012665,2]
[422341686,1778853032000,-7530.7,0.00012252,2]
[422341688,1778853032000,-157.58,0.00012285,2]
[422341705,1778853032000,-500.0,0.00013497,2]
[422341690,1778853032000,-150.0,0.00012356,2]
[422341724,1778853032000,-500.0,0.00013497,2]
[422341754,1778853032000,-500.0,0.00013498,2]
[422341759,1778853032000,-500.0,0.00013498,2]
[422341761,1778853032000,-500.0,0.00013498,2]
[422341762,1778853032000,-520.53619171,0.00013498,2]
[422341764,1778853032000,-160.0,0.00013573,2]
[422341766,1778853032000,-208.38824723,0.0001358,2]
[422341768,1778853032000,-680.58,0.00013592,2]
[422341781,1778853032000,-500.0,0.00013771,2]
[422341756,1778853032000,-500.0,0.00013498,2]
[422341777,1778853032000,-500.0,0.00013672,2]
[422341780,1778853032000,-210.04799343,0.00013762,2]
[422341776,1778853032000,-5000.0,0.00013672,2]
[422341778,1778853032000,-200.0,0.00013699,2]
[422341772,1778853032000,-11741.82272854,0.00013672,2]
[422341770,1778853032000,-316.02063198,0.00013672,2]
[422341774,1778853032000,-3413.59261355,0.00013672,2]
[422341783,1778853032000,-500.0,0.00013771,2]
[422341713,1778853032000,-317.26173353,0.00013497,2]
[422341782,1778853032000,-500.0,0.00013771,2]
[422341746,1778853032000,-500.0,0.00013498,2]
[422341779,1778853032000,-166.66,0.00013699,2]
[422341742,1778853032000,-152.1154947,0.00013498,2]
[422341726,1778853032000,-500.0,0.00013497,2]
[422341752,1778853032000,-500.0,0.00013498,2]
[422341716,1778853032000,-500.0,0.00013497,2]
[422341720,1778853032000,-500.0,0.00013497,2]
[422341728,1778853032000,-500.0,0.00013497,2]
[422341722,1778853032000,-500.0,0.00013497,2]
[422341714,1778853032000,-500.0,0.00013497,2]
[422341712,1778853032000,-244.0,0.00013497,2]
[422341730,1778853032000,-172.58069407,0.00013497,2]
[422341718,1778853032000,-500.0,0.00013497,2]
[422341732,1778853032000,-150.0,0.00013497,2]
[422341748,1778853032000,-500.0,0.00013498,2]
[422341736,1778853032000,-500.0,0.00013498,2]
[422341738,1778853032000,-150.0,0.00013498,2]
[422341750,1778853032000,-531.51017441,0.00013498,2]
[422341740,1778853032000,-500.0,0.00013498,2]
[422341734,1778853032000,-150.0,0.00013498,2]
[422341744,1778853032000,-500.0,0.00013498,2]
[422341811,1778853033000,-439.10728653,0.00013924,2]
[422341813,1778853033000,-166.66,0.00013973,2]
[422341814,1778853033000,-500.0,0.00013984,2]
[422341815,1778853033000,-500.0,0.00013984,2]
[422341810,1778853033000,-500.0,0.00013924,2]
[422341812,1778853033000,-150.82433024,0.00013946,2]
[422341807,1778853033000,-500.0,0.00013924,2]
[422341819,1778853033000,-255.0,0.00013995,2]
[422341821,1778853033000,-166.66,0.0001411,2]
[422341816,1778853033000,-500.0,0.00013984,2]
[422341827,1778853033000,-150.0,0.00014198,2]
[422341820,1778853033000,-250.0,0.00014,2]
[422341818,1778853033000,-500.0,0.00013984,2]
[422341823,1778853033000,-150.0,0.00014198,2]
[422341833,1778853033000,-11741.82272849,0.00014253,2]
[422341822,1778853033000,-150.0,0.00014198,2]
[422341824,1778853033000,-291.85352659,0.00014198,2]